[Event "4NCL 2023-2024"]
[Site "Daventry"]
[Date "2024.05.04"]
[Round "9.33"]
[White "Williams, Simon K"]
[Black "Olson, Hamish"]
[Result "0-1"]
[ECO "A13"]
[WhiteElo "2467"]
[BlackElo "2373"]
[Annotator "TA"]
[PlyCount "50"]
[EventDate "2023.11.11"]
[EventType "team-tourn"]
[EventCountry "ENG"]
[SourceTitle "playchess.com"]
[Source "ChessBase"]
[SourceQuality "1"]
[TimeControl "40/6000+30:3000+30"]

{[%evp 9,50,8,15,16,16,0,0,0,0,-100,0,-3,11,7,12,-32,-35,-36,-17,-39,-17,-116,-96,-127,-66,-54,-77,-127,-112,-150,-158,-141,-139,-161,-79,-358,-366,-354,-366,-29985,-177,-29986,-29987]} 1. Nf3 {[%emt 0:00:32]} d5 {[%emt 0:00:20]} 2. e3 {[%emt 0:00:54]} Nf6 {[%emt 0:00:31]} 3. c4 {[%emt 0:00:31]} e6 {[%emt 0:00:16]} 4. b3 {[%emt 0:03:16]} Bd6 {[%emt 0:00:27]} 5. Bb2 {[%emt 0:00:31]} O-O {[%emt 0:00:38]} 6. Nc3 {[%emt 0:02:32]} a6 {[%emt 0:00:49]} 7. Be2 {[%emt 0:04:14]} b6 {[%emt 0:00:27]} 8. Qc2 {[%emt 0:02:06] The position is equal.} Bb7 {[%emt 0:01:54]} 9. g4 {[%emt 0:07:21]} Nbd7 {[%emt 0:14:12]} (9... Nxg4 $17 {With the idea ...dxc4.} 10. Rg1 Nf6) 10. g5 $11 {[%emt 0:02:16]} Ne4 {[%emt 0:01:39]} 11. cxd5 {[%emt 0:02:32]} exd5 {[%emt 0:00:44]} 12. Nxe4 {[%emt 0:04:44]} dxe4 {[%emt 0:00:06]} 13. Qc3 $1 {[%emt 0:00:05][%csl Gb2][%cal Rc3g7] [#]} f6 {[%emt 0:02:22]} (13... exf3 14. Qxg7#) 14. gxf6 $1 {[%emt 0:03:39]} Nxf6 {[%emt 0:03:44]} (14... exf3 $2 15. Bc4+ Rf7 16. Bxf7+ Kf8 (16... Kxf7 $2 17. Qc4+ Kf8 18. fxg7+ Ke7 19. Qh4+ Ke6 20. Qxh7 $18) 17. Bg8 (17. fxg7+ Kxf7 18. Qc4+ Ke7 $18) 17... Nxf6 (17... Kxg8 $2 18. Qc4+ Kf8 19. fxg7+ Ke7 20. Qh4+ Kf7 21. Qxh7 $18) 18. Bxh7 $18) (14... Rxf6 {looks sharper.} 15. Bc4+ Kf8 16. Ng5 Be5) 15. Nd4 {[%emt 0:43:32]} (15. Ne5 $11) 15... Be5 {[%emt 0:10:03] And now ...c5 would win.} 16. Rg1 {[%emt 0:00:18][%cal Og1g7]} Kh8 {[%emt 0:04:49]} (16... Bxh2 $2 17. Rxg7+ Kxg7 18. Ne6+ Kg6 19. Nxd8 Raxd8 20. Qb4 $18) (16... Nd5 $17 17. Bc4 Qf6 (17... Bxh2 $2 18. Bxd5+ Bxd5 19. Ne6 $18)) 17. Qc2 $15 {[%emt 0:07:35]} Qd7 {[%emt 0:02:08][%cal Oc7c5] Inhibits Ne6. aiming for ...c5!} (17... Bxh2 $2 {loses.} 18. Rxg7 Qc8 19. Rg2 $18) 18. Rg5 {[%emt 0:00:11]} (18. f4 $142 exf3 19. Nxf3 Bxb2 20. Qxb2) 18... Rae8 $17 {[%emt 0:06:50][%cal Oh7h6] Strongly threatening ...h6!} 19. Ne6 {[%emt 0:01:03]} Rxe6 {[%emt 0:02:17]} 20. Rxe5 {[%emt 0:00:50]} Rc6 {[%emt 0:13:07]} 21. Bc3 {[%emt 0:01:50]} Nd5 $40 {[%emt 0:03:32][%mdl 128] Black is out for blood.} (21... Ng4 $19 {is more deadly.} 22. Rg5 Nxf2 (22... Nxh2 23. O-O-O $16)) 22. Qxe4 {[%emt 0:01:24][%mdl 8192] This costs White the game.} (22. Rxe4 $17 {keeps fighting.} Nxc3 23. dxc3) 22... Nxc3 $19 {[%emt 0:03:59]} 23. dxc3 {[%emt 0:00:15] [#] Black must now prevent Rd1.} Rg6 $1 {[%emt 0:01:14]} 24. Qxb7 $2 {[%emt 0:05:27]} (24. Qd4 $19 Rg1+ 25. Bf1) 24... Rg1+ {[%emt 0:00:33]} 25. Bf1 {[%emt 0:00:03]} Qd3 {[%emt 0:00:26] Weighted Error Value: White=0.66/Black=0.19 (very precise) .  Loses game:     	White=1     	---        Mistake:       	White=4     	Black=3      Inaccurate:     	White=4     	---        OK:         	White=5     	Black=5      Best:        	---       	Black=4      Strong:       	White=2     	Black=1} 0-1

[Event "4NCL 2023-2024"]
[Site "Daventry"]
[Date "2024.05.04"]
[Round "9.34"]
[White "Waldhausen Gordon, Frederick"]
[Black "Clarke, Brandon G I"]
[Result "1/2-1/2"]
[ECO "D97"]
[WhiteElo "2358"]
[BlackElo "2505"]
[Annotator "TA"]
[PlyCount "48"]
[EventDate "2023.11.11"]
[EventType "team-tourn"]
[EventCountry "ENG"]
[SourceTitle "playchess.com"]
[Source "ChessBase"]
[SourceQuality "1"]
[TimeControl "40/6000+30:3000+30"]

{[%evp 14,48,14,35,22,21,37,43,45,41,37,39,43,45,50,37,37,4,10,6,9,10,11,0,0,7,0,0,0,0,0,0,0,0,0,0,0]} 1. d4 {[%emt 0:00:01]} Nf6 {[%emt 0:00:08]} 2. c4 {[%emt 0:00:03]} g6 {[%emt 0:00:06]} 3. Nc3 {[%emt 0:00:04]} d5 {[%emt 0:00:59]} 4. Nf3 {[%emt 0:00:04]} Bg7 {[%emt 0:00:06]} 5. Qb3 {[%emt 0:00:05]} dxc4 {[%emt 0:00:07]} 6. Qxc4 {[%emt 0:00:06]} O-O {[%emt 0:01:09]} 7. e4 {[%emt 0:00:28]} Nc6 {[%emt 0:02:02]} 8. Be2 {[%emt 0:00:53]} e5 {[%emt 0:00:25]} 9. d5 {[%emt 0:00:03]} (9. Nxe5 Nxd4 10. O-O Nxe4 11. Nxe4 Be6 $17 (11... Bxe5 12. Bg5 $17)) 9... Nd4 {[%emt 0:00:11]} 10. Nxd4 {[%emt 0:00:08]} (10. Nxe5 $2 Nc2+ 11. Kd1 Nxa1 $19) 10... exd4 {[%emt 0:00:05] White is slightly better.} 11. Qxd4 {[%emt 0:00:05]} c6 {[%emt 0:00:32][%cal Of6d5]} 12. Qc4 {[%emt 0:00:08]} b5 {[%emt 0:00:17]} 13. Qxc6 {[%emt 0:00:09]} Bd7 {[%emt 0:00:11]} 14. Qd6 {[%emt 0:00:10][%cal Oe1g1]} Re8 {[%emt 0:00:21][%cal Bf8e8,Be8e5,Be5d5,Bd5d3][%mdl 32]} 15. e5 {[%emt 0:00:06]} (15. Bxb5 Nxe4 16. Qxd7 Nf6+ $15 (16... Nxc3+ $2 17. Qxe8+ Qxe8+ 18. Bxe8 $18) (16... Bxc3+ 17. bxc3 Nf6+ 18. Qxe8+ Nxe8 19. Bc6 $16) (16... Nxc3+ $2 17. Qxe8+ Qxe8+ 18. Bxe8 $18) (16... Bxc3+ 17. bxc3 Nf6+ 18. Qxe8+ Nxe8 19. Bc6 $16)) 15... b4 {[%emt 0:00:16] The position is equal.} 16. Qxb4 {[%emt 0:00:23]} (16. exf6 bxc3 17. O-O (17. fxg7 $2 {too greedy.} cxb2 18. Bxb2 Rxe2+ 19. Kf1 Rxb2 $19) 17... cxb2 (17... Bxf6 $2 18. Be3 $19) (17... Qxf6 18. Qxd7 Rxe2 19. bxc3 $16) (17... Rxe2 18. bxc3 Bxf6 19. Qg3 $17) 18. Bxb2 Rxe2 19. fxg7 Rxb2 $19) 16... Rxe5 {[%emt 0:00:08][%cal Od7g4]} 17. O-O {[%emt 0:01:00] Threatening Bf3.} a5 {[%emt 0:03:33]} 18. Qh4 {[%emt 0:06:05]} Nxd5 {[%emt 0:02:01]} 19. Qxd8+ {[%emt 0:00:14]} Rxd8 {[%emt 0:00:03]} 20. Nxd5 {[%emt 0:00:07]} Rxd5 {[%emt 0:09:27]} 21. Bf3 {[%emt 0:02:04]} Rd3 {[%emt 0:37:27]} 22. Be2 {[%emt 0:26:11]} Rd5 {[%emt 0:00:48]} 23. Bf3 {[%emt 0:00:14]} Rd3 {[%emt 0:00:35]} 24. Be2 {[%emt 0:00:11]} Rd5 {[%emt 0:00:39] Weighted Error Value: White=0.04 (flawless) /Black=0.02 (flawless) .  Inaccurate:     	White=1     	---        OK:         	White=9     	Black=7      Best:        	---       	Black=3} 1/2-1/2

[Event "4NCL 2023-2024"]
[Site "Daventry"]
[Date "2024.05.04"]
[Round "9.35"]
[White "Boswell, Jacob Connor"]
[Black "Gourlay, Iain"]
[Result "1/2-1/2"]
[ECO "D37"]
[WhiteElo "2252"]
[BlackElo "2310"]
[Annotator "TA"]
[PlyCount "74"]
[EventDate "2023.11.11"]
[EventType "team-tourn"]
[EventCountry "ENG"]
[SourceTitle "playchess.com"]
[Source "ChessBase"]
[SourceQuality "1"]
[TimeControl "40/6000+30:3000+30"]

{[%evp 12,74,12,21,31,23,31,22,7,18,23,10,14,1,7,0,0,0,40,7,30,0,-8,-7,4,-24,-23,-49,-62,-49,-56,-90,-91,-103,-81,-105,-108,-112,-110,-142,-137,-148,-137,-183,-188,-322,-320,-428,-422,-427,-427,-543,-540,-523,-410,-451,-484,-5189,-504,-490,0,0,0,0,0]} 1. d4 {[%emt 1:41:00]} d5 {[%emt 0:05:44]} 2. c4 {[%emt 0:00:00]} e6 {[%emt 0:00:29]} 3. Nf3 {[%emt 0:00:00]} Nf6 {[%emt 0:00:11]} 4. Nc3 {[%emt 0:00:00]} Be7 {[%emt 0:00:34]} 5. Bf4 {[%emt 0:00:00]} O-O {[%emt 0:00:20]} 6. e3 {[%emt 0:00:00]} b6 {[%emt 0:01:07]} 7. Bd3 {[%emt 0:00:00]} Ba6 {[%emt 0:00:53]} 8. cxd5 {[%emt 0:00:00]} Nxd5 {[%emt 0:00:39]} 9. Nxd5 {[%emt 0:00:00]} Qxd5 {[%emt 0:00:45]} 10. O-O {[%emt 0:00:00]} Rc8 {[%emt 0:01:38]} 11. e4 {[%emt 0:00:00]} Qb7 {[%emt 0:00:27]} 12. Re1 {[%emt 0:00:00][%cal Od4d5]} Bxd3 {[%emt 0:10:00]} 13. Qxd3 {[%emt 0:00:00]} Nd7 {[%emt 0:01:30]} 14. Rad1 {[%emt 0:00:00]} Nf6 {[%emt 0:06:06]} 15. Qc2 {[%emt 0:00:00]} c6 {[%emt 0:13:12]} 16. Bg5 {[%emt 0:00:00]} h6 {[%emt 0:03:32]} 17. Bh4 {[%emt 0:00:00]} Rd8 {[%emt 0:01:15]} 18. a3 {[%emt 0:00:00]} Rac8 {[%emt 0:12:53]} 19. b4 {[%emt 0:00:00]} c5 {[%emt 0:14:08]} 20. bxc5 {[%emt 0:00:00]} bxc5 {[%emt 0:01:05]} 21. Bxf6 {[%emt 0:00:00]} Bxf6 {[%emt 0:00:39]} 22. dxc5 {[%emt 0:00:00]} Rxd1 $1 {[%emt 0:01:16]} 23. Rxd1 {[%emt 0:00:00] [#]} Be7 $1 {[%emt 0:02:09][%cal Bf6e7,Be7c5,Bc5b6][%mdl 32]} 24. g3 {[%emt 0:03:28]} Bxc5 {[%emt 0:03:17]} ({Much worse is} 24... Rxc5 $6 25. Qa4 $11) 25. a4 {[%emt 0:02:31]} Bb6 {[%emt 0:02:43]} 26. Qb1 {[%emt 0:01:07] a5 is the strong threat.} Qc6 {[%emt 0:01:33]} 27. Qb4 {[%emt 0:03:15] [#]} (27. Kg2 $17) 27... Qc4 $1 $19 {[%emt 0:04:40]} 28. Qe1 {[%emt 0:02:13]} (28. Qxc4 {was necessary.} Rxc4 29. e5) 28... Qxa4 {[%emt 0:00:54] White must now prevent ...Rc2.} 29. Qe2 {[%emt 0:00:43]} Rc2 {[%emt 0:02:25]} 30. Rd2 {[%emt 0:00:04]} Rxd2 {[%emt 0:00:54]} 31. Qxd2 {[%emt 0:00:55]} Qxe4 {[%emt 0:00:40][%mdl 4096] Endgame. KQB-KQN} 32. Kg2 {[%emt 0:00:00]} Qd5 {[%emt 0:05:10]} 33. Qf4 {[%emt 0:00:53]} g5 {[%emt 0:01:13]} 34. Qg4 {[%emt 0:00:24]} (34. Qb8+ $142 Kg7 35. h3) 34... f5 {[%emt 0:05:49]} (34... Qc5 $142 35. h4 Qxf2+ 36. Kh1 Qf1+ 37. Kh2 Qe2+ 38. Kh1 Bd8) 35. Qh5 {[%emt 0:00:23]} g4 $2 {[%emt 0:02:00]} (35... Kg7 $19 {( -> ...g4)} 36. Qe8 Bc5) 36. Qe8+ $1 $11 {[%emt 0:00:17]} Kg7 {[%emt 0:01:32]} 37. Qe7+ {[%emt 0:00:09]} Kg8 {[%emt 0:01:31] Weighted Error Value: White=0.45/Black=0.46.  Mistake:       	White=3     	Black=1      Inaccurate:     	White=6     	Black=1      OK:         	White=4     	Black=14     Best:        	White=2     	Black=2      Strong:       	White=1     	Black=2} (37... Kg6 $5 38. Qe8+ $8 Kg7 39. Qe7+ Kg6 40. Qe8+ Kf6 41. Qf8+ Kg6 42. Qg8+ Kf6 43. Qf8+ Kg6 44. Qg8+ Kf6 45. Qf8+ $11) 1/2-1/2

[Event "4NCL 2023-2024"]
[Site "Daventry"]
[Date "2024.05.04"]
[Round "9.36"]
[White "Berry, Neil"]
[Black "Kirk, Ezra"]
[Result "0-1"]
[ECO "E63"]
[WhiteElo "2260"]
[BlackElo "2393"]
[Annotator "TA"]
[PlyCount "84"]
[EventDate "2023.11.11"]
[EventType "team-tourn"]
[EventCountry "ENG"]
[SourceTitle "playchess.com"]
[Source "ChessBase"]
[SourceQuality "1"]
[TimeControl "40/6000+30:3000+30"]

{[%evp 19,84,16,32,12,13,0,31,35,38,53,63,56,76,-8,-15,0,0,-10,-9,0,-10,-26,-27,-46,-27,-38,-47,-67,-66,-68,-45,-58,-27,-33,-46,-43,-12,-94,-94,-137,-135,-129,-94,-125,-101,-461,-466,-757,-737,-741,-718,-1180,-1179,-1174,-1166,-1095,-1057,-1018,-804,-920,-787,-1020,-991,-996,-910,-1392,-1387]} 1. d4 {[%emt 0:00:22]} Nf6 {[%emt 0:00:12]} 2. c4 {[%emt 0:00:16]} g6 {[%emt 0:00:08]} 3. Nf3 {[%emt 0:00:26]} Bg7 {[%emt 0:00:11]} 4. g3 {[%emt 0:00:13]} O-O {[%emt 0:02:44]} 5. Bg2 {[%emt 0:00:31]} d6 {[%emt 0:00:35]} 6. Nc3 {[%emt 0:00:57]} Nc6 {[%emt 0:00:13]} 7. d5 {[%emt 0:01:20]} Na5 {[%emt 0:01:42]} 8. b3 {[%emt 0:00:45]} c5 {[%emt 0:04:07]} 9. Bb2 {[%emt 0:00:51]} a6 {[%emt 0:02:07]} 10. O-O {[%emt 0:01:32]} Rb8 {[%emt 0:01:56]} 11. Nd2 {[%emt 0:01:26]} b5 {[%emt 0:00:35]} 12. Qc1 {[%emt 0:01:53]} bxc4 {[%emt 0:07:49]} 13. bxc4 {[%emt 0:02:49] White is slightly better.} e6 {[%emt 0:01:34]} 14. Rb1 {[%emt 0:22:31]} Re8 {[%emt 0:10:26]} 15. e3 {[%emt 0:15:28]} Ng4 {[%emt 0:22:24]} 16. Ba1 {[%emt 0:28:24]} (16. Qc2 $16) 16... Rxb1 $11 {[%emt 0:03:15]} 17. Qxb1 {[%emt 0:00:09]} Ne5 {[%emt 0:02:24]} 18. Rd1 {[%emt 0:03:56]} Naxc4 {[%emt 0:12:19]} 19. Nxc4 {[%emt 0:00:42]} Nxc4 {[%emt 0:00:08]} 20. dxe6 {[%emt 0:02:02]} Bxe6 {[%emt 0:04:06]} 21. Ne4 {[%emt 0:03:49]} Qe7 {[%emt 0:04:53]} 22. Bxg7 {[%emt 0:00:45]} Kxg7 {[%emt 0:00:20]} 23. Qa1+ {[%emt 0:02:01]} f6 {[%emt 0:00:41]} 24. Nc3 {[%emt 0:00:52]} Ne5 {[%emt 0:02:35]} 25. Nd5 {[%emt 0:01:23]} Bxd5 {[%emt 0:02:27]} 26. Bxd5 {[%emt 0:01:44]} Rb8 {[%emt 0:00:14]} 27. Qc3 {[%emt 0:05:17]} Rb6 {[%emt 0:08:59]} 28. h4 {[%emt 0:03:37]} (28. f4 $11 Ng4 29. e4) 28... Qd7 $17 {[%emt 0:03:47]} 29. Qa5 {[%emt 0:06:55]} Qb5 {[%emt 0:01:38]} 30. Qd2 {[%emt 0:00:23]} Qa4 {[%emt 0:04:17][%cal Ob6b2]} 31. Kg2 {[%emt 0:00:44]} Qa3 {[%emt 0:02:09] Hoping for ...Rb2. Black is more active.} 32. Be4 $2 {[%emt 0:00:56][%mdl 8192] [#] Now White is beyond hope.} (32. Be6 $17 {is more resistant.}) 32... Rb2 $1 $19 {[%emt 0:01:37] Black is clearly winning.} 33. Qe1 {[%emt 0:00:53]} ({Don't play} 33. Qxd6 Qxe3 34. Qe7+ Nf7) (33. Qd5 $142 Qxe3 34. Qb7+ Rxb7 35. fxe3 Rb2+ 36. Kg1) 33... Ng4 {[%emt 0:01:23]} 34. Rxd6 {[%emt 0:00:52]} Nxf2 {[%emt 0:01:37]} 35. Rd7+ {[%emt 0:00:20]} Kh6 {[%emt 0:00:31]} 36. Qxf2 {[%emt 0:00:30]} Rxf2+ {[%emt 0:00:11]} 37. Kxf2 {[%emt 0:00:02]} Qxa2+ {[%emt 0:00:50] KQ-KRB} 38. Kf3 {[%emt 0:00:08]} Qa1 {[%emt 0:00:57]} 39. Kf2 {[%emt 0:01:02] Prevents Qf1+.} Qe5 {[%emt 0:00:12]} 40. Bf3 {[%emt 0:00:51]} a5 {[%emt 0:01:07]} 41. Rd5 {[%emt 0:02:19]} Qb2+ {[%emt 0:03:52]} 42. Kg1 {[%emt 0:03:35]} a4 {[%emt 0:05:22] Weighted Error Value: White=0.89/Black=0.25 (precise) .  Loses game:     	White=1     	---        Mistake:       	White=3     	---        Inaccurate:     	White=2     	Black=3      OK:         	White=6     	Black=5      Best:        	---       	Black=3      Strong:       	---       	Black=1} 0-1

[Event "4NCL 2023-2024"]
[Site "Daventry"]
[Date "2024.05.04"]
[Round "9.37"]
[White "Pert, Richard G"]
[Black "Shafi, Declan"]
[Result "1-0"]
[ECO "D87"]
[WhiteElo "2413"]
[BlackElo "2226"]
[Annotator "TA"]
[PlyCount "127"]
[EventDate "2023.11.11"]
[EventType "team-tourn"]
[EventCountry "ENG"]
[SourceTitle "playchess.com"]
[Source "ChessBase"]
[SourceQuality "1"]
[TimeControl "40/6000+30:3000+30"]

{[%evp 23,127,31,29,34,21,24,43,33,32,32,44,42,43,35,58,56,57,51,85,96,190,183,199,208,198,198,192,202,207,218,201,200,235,209,217,197,402,404,381,312,312,310,348,306,360,325,362,324,428,442,437,333,369,352,357,350,355,339,347,390,390,385,376,382,377,321,357,383,380,362,341,366,323,353,319,397,389,0,379,0,411,413,427,396,535,534,440,440,658,656,666,651,5702,6318,29970,2731,7914,29973,29962,6419,29990,29991,29992,29993,29995,29986]} 1. d4 {[%emt 0:00:09]} Nf6 {[%emt 0:00:05]} 2. c4 {[%emt 0:00:37]} g6 {[%emt 0:00:18]} 3. Nc3 {[%emt 0:00:13]} d5 {[%emt 0:00:20]} 4. cxd5 {[%emt 0:00:08]} Nxd5 {[%emt 0:00:07]} 5. e4 {[%emt 0:00:09]} Nxc3 {[%emt 0:00:36]} 6. bxc3 {[%emt 0:00:08]} Bg7 {[%emt 0:00:53]} 7. Bc4 {[%emt 0:00:20]} c5 {[%emt 0:00:46]} 8. Ne2 {[%emt 0:00:11]} O-O {[%emt 0:02:04]} 9. O-O {[%emt 0:03:02]} Nc6 {[%emt 0:00:11]} 10. Be3 {[%emt 0:00:44]} Bg4 {[%emt 0:02:55]} 11. f3 {[%emt 0:00:44]} Bd7 {[%emt 0:00:05]} 12. Rb1 {[%emt 0:01:16]} Qc7 {[%emt 0:07:11]} 13. Bd3 {[%emt 0:08:04]} Rfd8 {[%emt 0:05:52]} 14. Qd2 {[%emt 0:17:33]} Be8 {[%emt 0:05:00]} 15. d5 {[%emt 0:02:35][%cal Of3f4] White is slightly better.} ({Don't play} 15. dxc5 Ne5 16. Nd4 b6 17. cxb6 axb6 $11) 15... Ne5 {[%emt 0:04:24]} 16. c4 {[%emt 0:00:38]} Rac8 {[%emt 0:07:30]} 17. Rfc1 {[%emt 0:01:32]} e6 {[%emt 0:13:21][%cal Ob7b5]} 18. Nf4 {[%emt 0:09:04]} Qe7 {[%emt 0:09:13]} 19. Bf1 {[%emt 0:02:15]} Nc6 {[%emt 0:04:03]} 20. Ne2 {[%emt 0:11:05]} e5 {[%emt 0:03:17]} 21. Qb2 {[%emt 0:01:35] White stays focused until the end.} Nd4 {[%emt 0:05:44]} (21... Na5 $16) 22. Qxb7 $18 {[%emt 0:02:46]} Rc7 {[%emt 0:00:09]} 23. Qa6 {[%emt 0:08:58]} f5 {[%emt 0:00:37][%cal Bf7f5,Bf5f4][%mdl 32]} 24. Qa5 {[%emt 0:03:42]} Rdc8 {[%emt 0:03:34]} 25. Rb2 {[%emt 0:05:44]} Qh4 {[%emt 0:07:28]} 26. Qe1 {[%emt 0:01:05]} Qf6 {[%emt 0:01:47]} 27. Rcb1 {[%emt 0:02:34]} f4 {[%emt 0:03:05]} 28. Bf2 {[%emt 0:02:44]} g5 {[%emt 0:01:17]} 29. Nxd4 {[%emt 0:01:09]} exd4 {[%emt 0:00:51] [#]} (29... cxd4 {is a better defense.} 30. h4 h6) 30. e5 $1 {[%emt 0:01:17][%mdl 512]} Qf5 {[%emt 0:04:30]} (30... Qf8 31. Bd3) 31. e6 {[%emt 0:00:22] Black must now prevent d6.} Bf8 {[%emt 0:03:24]} 32. Rb3 {[%emt 0:01:39]} Bd6 {[%emt 0:02:48]} 33. Bd3 {[%emt 0:00:29]} Qf6 {[%emt 0:00:07]} 34. h3 {[%emt 0:01:43] Black is weak on the light squares} Kg7 {[%emt 0:00:34]} 35. R1b2 {[%emt 0:01:58]} Qd8 {[%emt 0:13:54]} 36. Qb1 {[%emt 0:01:26]} h6 {[%emt 0:00:00]} 37. Qe1 {[%emt 0:00:15]} Qf6 {[%emt 0:01:00]} 38. Rb7 {[%emt 0:01:22]} Bg6 {[%emt 0:00:00]} 39. Qb1 {[%emt 0:03:45]} Bxd3 {[%emt 0:00:00]} 40. Qxd3 {[%emt 0:00:05]} Rxb7 {[%emt 0:00:00]} 41. Rxb7+ {[%emt 0:50:11]} Rc7 {[%emt 0:45:19]} 42. Rxc7+ {[%emt 0:00:00]} Bxc7 {[%emt 0:00:00][%mdl 4096] Endgame. KQB-KQB} 43. Qa3 {[%emt 0:00:00]} Bb6 {[%emt 0:00:00]} 44. Qa4 {[%emt 0:00:00] Strongly threatening Qd7+.} Qe7 {[%emt 0:00:00]} 45. Be1 {[%emt 0:00:00]} Qd8 {[%emt 0:00:00]} 46. Qc6 {[%emt 0:00:00] d6 is the strong threat.} Qe7 {[%emt 0:00:00]} 47. Bd2 {[%emt 0:00:00]} Kf6 {[%emt 0:00:00]} 48. Qa8 {[%emt 0:00:00]} Qd8 {[%emt 0:00:00]} 49. Qb7 {[%emt 0:00:00]} Qc7 {[%emt 0:00:00]} 50. Qa8 {[%emt 0:00:00]} Qd8 {[%emt 0:00:00]} 51. Qc6 {[%emt 0:00:00]} Qe7 $1 {[%emt 0:00:00]} 52. Kf1 {[%emt 0:00:00]} Bd8 {[%emt 0:00:00]} 53. Ke2 {[%emt 0:00:00]} Bb6 {[%emt 0:00:00]} 54. a4 {[%emt 0:00:00][%cal Ba2a4,Ba4a5,Ba5a6][%mdl 32]} Bd8 {[%emt 0:00:00]} 55. a5 {[%emt 0:00:00]} Bc7 {[%emt 0:00:00]} (55... h5 $142 56. a6 h4) 56. a6 {[%emt 0:00:00]} Bb6 {[%emt 0:00:00]} 57. Qb7 {[%emt 0:00:00]} Qc7 {[%emt 0:00:00] [#]} 58. d6 $1 {[%emt 0:00:00][%mdl 512] Prevents Qe7} Qg7 {[%emt 0:00:00]} 59. e7 {[%emt 0:03:04]} Qg8 {[%emt 0:00:00]} 60. Qe4 {[%emt 0:08:30] Active counter play!} Qe8 {[%emt 0:00:00] [#]} 61. h4 $1 {[%emt 0:02:16][%mdl 512]} gxh4 {[%emt 0:00:00]} (61... Bd8 62. Qa8) 62. Bxf4 {[%emt 0:00:21] White mates.} Kf7 {[%emt 0:00:00]} 63. Qf5+ {[%emt 0:00:24]} Kg7 {[%emt 0:00:00]} 64. Bxh6+ {[%emt 0:02:36] Weighted Error Value: White=0.22 (precise) /Black=0.31.  Mistake:       	---       	Black=3      Inaccurate:     	---       	Black=3      OK:         	White=25    	Black=15     Best:        	White=1     	Black=1      Strong:       	---       	Black=1      Brilliant:      	White=1     	---} 1-0

[Event "4NCL 2023-2024"]
[Site "Daventry"]
[Date "2024.05.04"]
[Round "9.38"]
[White "McKay, Roderick M"]
[Black "Arkell, Keith C"]
[Result "0-1"]
[ECO "D94"]
[WhiteElo "2181"]
[BlackElo "2377"]
[Annotator "TA"]
[PlyCount "54"]
[EventDate "2023.11.11"]
[EventType "team-tourn"]
[EventCountry "ENG"]
[SourceTitle "playchess.com"]
[Source "ChessBase"]
[SourceQuality "1"]
[TimeControl "40/6000+30:3000+30"]

{[%evp 20,52,-1,0,-9,-15,0,-13,0,-10,20,54,34,22,43,33,41,0,0,0,0,0,0,0,0,-20,-17,-94,-87,-94,-96,-200,-198,32767,-297]} 1. e4 {[%emt 0:00:09]} c6 {[%emt 0:00:16]} 2. d4 {[%emt 0:00:52]} d5 {[%emt 0:00:04]} 3. exd5 {[%emt 0:00:22]} cxd5 {[%emt 0:00:04]} 4. c4 {[%emt 0:00:12]} Nf6 {[%emt 0:00:05][%cal Bg8f6,Bf6d5,Bd5b6][%mdl 32]} 5. Nc3 {[%emt 0:00:29]} g6 {[%emt 0:00:04]} 6. cxd5 {[%emt 0:05:19]} Nxd5 {[%emt 0:00:12]} 7. Bc4 {[%emt 0:00:41]} Nb6 {[%emt 0:00:18]} 8. Bb3 {[%emt 0:00:07]} Bg7 {[%emt 0:00:08]} 9. Nf3 {[%emt 0:00:11]} O-O {[%emt 0:00:06]} 10. O-O {[%emt 0:00:04]} Bg4 {[%emt 0:00:19]} 11. h3 {[%emt 0:03:51]} Bxf3 {[%emt 0:00:05]} 12. Qxf3 {[%emt 0:00:09]} Nc6 {[%emt 0:00:15]} 13. Rd1 {[%emt 0:00:46]} Nxd4 {[%emt 0:01:30] The position is equal.} 14. Qxb7 {[%emt 0:01:09]} Qd7 {[%emt 0:07:35]} (14... e5 {looks sharper.} 15. Ne4 h6 16. Qa6 Qc8) 15. Qxd7 {[%emt 0:07:12]} Nxd7 {[%emt 0:02:33] Excellent horsemanship.} 16. Be3 {[%emt 0:01:59]} Nxb3 {[%emt 0:00:29]} 17. axb3 {[%emt 0:00:09]} Nb6 {[%emt 0:00:45] Black is weak on the light squares} 18. Ra2 {[%emt 0:04:43]} Rfb8 {[%emt 0:05:24]} 19. Nb5 {[%emt 0:02:12]} e6 {[%emt 0:30:26]} 20. Nc7 {[%emt 0:06:36]} (20. Nxa7 Nd5 21. Nc6 Rxa2 $15 (21... Rxb3 22. Rxa8+ Bf8 23. Bh6)) 20... Rd8 {[%emt 0:00:02]} 21. Rc1 {[%emt 0:11:47]} Rab8 {[%emt 0:04:08]} 22. Rxa7 {[%emt 0:06:32]} Bxb2 {[%emt 0:07:52]} 23. Rc6 {[%emt 0:03:23]} (23. Rb1 $11 {keeps the balance.} Bd4 24. Bxd4 Rxd4 25. b4) 23... Nc8 $17 {[%emt 0:07:26][%csl LRa7,LRb3]} 24. Ra5 {[%emt 0:07:19]} Ne7 $1 {[%emt 0:04:52]} ({Much weaker is} 24... Rxb3 25. Ra8 Ra3 26. Rb8 $11) 25. Rb6 {[%emt 0:06:03]} (25. Rc4 $17) 25... Rbc8 $19 {[%emt 0:01:39]} 26. Rb7 {[%emt 0:02:18]} Rd1+ {[%emt 0:03:27]} 27. Kh2 {[%emt 0:00:09]} Rd7 {[%emt 0:00:08] Weighted Error Value: White=0.18 (very precise) /Black=0.06 (flawless) .  Mistake:       	White=2     	---        Inaccurate:     	White=1     	Black=1      OK:         	White=7     	Black=7      Best:        	---       	Black=2      Strong:       	---       	Black=1} 0-1